fUSD/lending_fUSD_20251201
["ID","MTS","AMOUNT","RATE_DAILY","PERIOD"]
[395317128,1764616241868,-500.0,0.00017773,2]
[395317129,1764616241877,-500.0,0.00017773,2]
[395317130,1764616241888,-500.0,0.00017773,2]
[395317131,1764616241897,-500.5084331,0.00017773,2]
[395317132,1764616241907,-355.07457118,0.00017773,2]
[395317133,1764616241916,-500.0,0.00017773,2]
[395317134,1764616241926,-500.0,0.00017773,2]
[395317135,1764616241935,-528.45686028,0.00017773,2]
[395317136,1764616241945,-500.0,0.00017773,2]
[395317137,1764616241955,-500.0,0.00017773,2]
[395317138,1764616241964,-160.09684565,0.00017773,2]
[395317139,1764616241973,-160.09669624,0.00017773,2]
[395317140,1764616241983,-500.0,0.00017773,2]
[395317141,1764616241992,-160.09796136,0.00017773,2]
[395317142,1764616242002,-500.0,0.00017773,2]
[395317143,1764616242011,-557.4345573,0.00017773,2]
[395317144,1764616242020,-500.0,0.00017773,2]
[395317145,1764616242030,-500.0,0.00017773,2]
[395317146,1764616242039,-500.0,0.00017773,2]
[395317147,1764616242048,-500.0,0.00017773,2]
[395317148,1764616242058,-500.0,0.00017773,2]
[395317149,1764616242067,-500.0,0.00017773,2]
[395317150,1764616242077,-500.0,0.00017773,2]
[395317151,1764616242087,-500.0,0.00017773,2]
[395317152,1764616242096,-160.09311838,0.00017773,2]
[395317153,1764616242105,-500.0,0.00017773,2]
[395317154,1764616242115,-500.0,0.00017773,2]
[395317155,1764616242124,-500.0,0.00017773,2]
[395317156,1764616242134,-500.0,0.00017773,2]
[395317157,1764616242143,-156.08046811,0.00017773,2]
[395317158,1764616242152,-500.0,0.00017773,2]
[395317159,1764616242161,-500.0,0.00017773,2]
[395317160,1764616242171,-160.09865388,0.00017773,2]
[395317161,1764616242181,-500.0,0.00017773,2]
[395317162,1764616242191,-500.0,0.00017773,2]
[395317163,1764616242200,-500.0,0.00017773,2]
[395317164,1764616242209,-211.79,0.00017779,2]
[395317165,1764616242220,-168.0,0.00017827,2]
[395317166,1764616242230,-959.07,0.00017829,2]
[395317167,1764616242240,-168.0,0.0001788,2]
[395317168,1764616242257,-168.0,0.00018057,2]
[395317169,1764616242267,-1500.0,0.00018068,2]
[395317170,1764616242276,-497.87679415,0.00018068,2]
[395317171,1764616242287,-1500.0,0.00018068,2]
[395317172,1764616242298,-1500.0,0.00018068,2]
[395317173,1764616242308,-1419.63831049,0.00018068,2]
[395317174,1764616242319,-1196.9035739,0.00018068,2]
[395317175,1764616242332,-1500.0,0.00018068,2]
[395317176,1764616242342,-1500.0,0.00018068,2]
[395317177,1764616242352,-1500.0,0.00018068,2]
[395317178,1764616242363,-1500.0,0.00018068,2]
[395317179,1764616242376,-168.0,0.00018096,2]
[395317180,1764616242387,-959.07,0.00018103,2]
[395317181,1764616242398,-600.0,0.00018196,2]
[395317182,1764616242408,-4038.81954514,0.00018216,2]
[395317183,1764616242420,-830.0,0.00018216,2]
[395317184,1764616242430,-278.13815528,0.00018216,2]
[395317185,1764616242440,-21413.86589813,0.00018304,2]
[395317186,1764616242450,-1000.0,0.00018321,2]
[395317187,1764616242463,-506.68012113,0.00018321,2]
[395317188,1764616242474,-500.0,0.00018321,2]
[395317189,1764616242484,-1035.1038375,0.00018321,2]
[395317190,1764616242494,-1000.0,0.00018321,2]
[395317191,1764616242506,-338.74802037,0.00018321,2]
[395317192,1764616242515,-1000.0,0.00018321,2]
[395317193,1764616242526,-1000.0,0.00018321,2]
[395317194,1764616242535,-411.0756228,0.00018321,2]
[395317195,1764616242545,-500.0,0.00018321,2]
[395317196,1764616242554,-1000.0,0.00018321,2]
[395317197,1764616242563,-957.63452341,0.00018321,2]
[395317198,1764616242573,-280.35705212,0.00018321,2]
[395317199,1764616242582,-1000.0,0.00018321,2]
[395317200,1764616242592,-750.0,0.00018321,2]
[395317201,1764616242601,-1000.0,0.00018321,2]
[395317202,1764616242611,-1000.0,0.00018321,2]
[395317203,1764616242623,-1000.0,0.00018321,2]
[395317204,1764616242632,-1000.0,0.00018321,2]
[395317205,1764616242644,-614.46769762,0.00018321,2]
[395317206,1764616242653,-1000.0,0.00018321,2]
[395317207,1764616242663,-516.50455865,0.00018321,2]
[395317208,1764616242672,-1000.0,0.00018321,2]
[395317209,1764616242682,-1000.0,0.00018321,2]
[395317210,1764616242691,-1000.0,0.00018321,2]
[395317211,1764616242700,-1000.0,0.00018321,2]
[395317212,1764616242710,-1000.0,0.00018321,2]
[395317213,1764616242719,-1000.0,0.00018321,2]
[395317214,1764616242728,-160.17885855,0.00018321,2]
[395317215,1764616242738,-1000.0,0.00018321,2]
[395317216,1764616242748,-1000.0,0.00018321,2]
[395317217,1764616242757,-1000.0,0.00018321,2]
[395317219,1764616242767,-1000.0,0.00018321,2]
[395317220,1764616242776,-1000.0,0.00018321,2]
[395317222,1764616242786,-1000.0,0.00018321,2]
[395317223,1764616242795,-696.42213297,0.00018321,2]
[395317224,1764616242805,-664.92632319,0.00018321,2]
[395317226,1764616242815,-1000.0,0.00018321,2]
[395317228,1764616242824,-530.66702702,0.00018321,2]
[395317230,1764616242834,-1000.0,0.00018321,2]
[395317232,1764616242844,-1000.0,0.00018321,2]
[395317234,1764616242855,-1000.0,0.00018321,2]
[395317236,1764616242865,-959.17706299,0.00018377,2]
[395317238,1764616242875,-1132.0,0.00018564,2]
[395317239,1764616242887,-217.68125906,0.00018616,2]
[395317240,1764616242896,-2000.0,0.00018616,2]
[395317242,1764616242906,-2000.0,0.00018616,2]
[395317244,1764616242916,-2000.0,0.00018616,2]
[395317246,1764616242927,-1000.0,0.00018616,2]
[395317248,1764616242936,-2000.0,0.00018616,2]
[395317249,1764616242946,-2000.0,0.00018616,2]
[395317251,1764616242959,-600.0,0.00018744,2]
[395317253,1764616242968,-1339.96710079,0.00018868,2]
[395317255,1764616242978,-737.63476882,0.00018868,2]
[395317257,1764616242988,-1500.0,0.00018868,2]
[395317259,1764616242998,-1500.0,0.00018868,2]
[395317260,1764616243009,-987.452036,0.00018868,2]
[395317261,1764616243018,-1505.52147503,0.00018868,2]
[395317262,1764616243029,-663.98817001,0.00018868,2]
[395317264,1764616243038,-1552.19905586,0.00018868,2]
[395317266,1764616243048,-441.13189507,0.00018868,2]
[395317268,1764616243058,-771.24315862,0.00018868,2]
[395317269,1764616243067,-1507.53552233,0.00018868,2]
[395317270,1764616243077,-1500.0,0.00018868,2]
[395317271,1764616243087,-1500.0,0.00018868,2]
[395317272,1764616243097,-1500.0,0.00018868,2]
[395317273,1764616243107,-1055.00053518,0.00018868,2]
[395317274,1764616243116,-1500.0,0.00018868,2]
[395317275,1764616243126,-1500.0,0.00018868,2]
[395317276,1764616243135,-1386.40188047,0.00018868,2]
[395317277,1764616243144,-1500.0,0.00018868,2]
[395317278,1764616243154,-1500.0,0.00018868,2]
[395317279,1764616243164,-1500.0,0.00018868,2]
[395317280,1764616243173,-1500.0,0.00018868,2]
[395317281,1764616243183,-1089.16818457,0.00018868,2]
[395317282,1764616243193,-1500.95083099,0.00018868,2]
[395317283,1764616243203,-1500.0,0.00018868,2]
[395317284,1764616243213,-1500.0,0.00018868,2]
[395317285,1764616243224,-357.93,0.00018927,2]
[395317286,1764616243234,-300.0,0.00019,2]
[395317287,1764616243250,-205.33290894,0.00019,2]
[395317288,1764616243260,-202.04411004,0.00019082,2]
[395317289,1764616243270,-2500.0,0.00019164,2]
[395317290,1764616243280,-1008.61900502,0.00019164,2]
[395317291,1764616243291,-2500.0,0.00019164,2]
[395317292,1764616243301,-2500.0,0.00019164,2]
[395317293,1764616243312,-2503.24440307,0.00019164,2]
[395317294,1764616243322,-151.0,0.00019178,2]
[395317295,1764616243332,-600.0,0.00019292,2]
[395317296,1764616243343,-3178.27,0.00019345,2]
[395317297,1764616243353,-500.0,0.00019416,2]
[395317298,1764616243363,-384.9832306,0.00019416,2]
[395317299,1764616243374,-500.0,0.00019416,2]
[395317300,1764616243384,-503.6615541,0.00019416,2]
[395317301,1764616243394,-945.30965623,0.00019416,2]
[395317302,1764616243404,-2000.0,0.00019416,2]
[395317303,1764616243414,-500.0,0.00019416,2]
[395317304,1764616243424,-1188.17593625,0.00019416,2]
[395317305,1764616243433,-972.98196458,0.00019416,2]
[395317306,1764616243443,-126.00954425,0.00019416,2]
[395317307,1764616245068,-373.99045575,0.00019416,2]
[395317308,1764616245079,-402.91264176,0.00019416,2]
[395317309,1764616245091,-97.08735824,0.00019416,2]
[395317310,1764616245100,-719.93840258,0.00019416,2]
[395317311,1764616245408,-316.16713008,0.00015257,2]
[395317312,1764616245420,-575.72410619,0.00015257,2]
[395317313,1764616245431,-268.71248221,0.00015257,2]
[395317314,1764616245441,-500.0,0.00017773,2]
[395317315,1764616245451,-548.82474691,0.00018321,2]
[395317316,1764616245461,-1365.72472934,0.00019416,2]
[395317317,1764616245471,-2000.0,0.00019416,2]
[395317318,1764616245480,-2287.99418749,0.00019712,2]
[395317324,1764616245956,-219.62013657,0.00017773,2]
[395317325,1764616245966,-256.73210752,0.00019712,2]
[395317326,1764616245978,-455.27370499,0.00019712,2]
[395317327,1764616245988,-124.72629502,0.00019712,2]
[395317328,1764616246019,-2875.27370498,0.00019712,2]
[395317329,1764616246028,-572.7764437,0.00019712,2]
[395317330,1764616246038,-156.587,0.00019726,2]
[395317331,1764616246048,-1500.0,0.00019822,2]
[395317332,1764616246058,-600.0,0.0001984,2]
[395317333,1764616246068,-1030.94789734,0.00019964,2]
[395317334,1764616246077,-2500.0,0.00019964,2]
[395317335,1764616246087,-250.0,0.00020016,2]
[395317336,1764616246098,-19043.63530165,0.00020233,2]
[395317337,1764616246107,-464.07027394,0.0002026,2]
[395317338,1764616246116,-500.0,0.0002026,2]
[395317339,1764616246126,-150.74,0.0002029,2]
[395317340,1764616246136,-484.59708163,0.0002029,2]
[395317341,1764616246146,-151.0,0.00020297,2]
[395317342,1764616246158,-151.0,0.000203,2]
[395317343,1764616246167,-578.20924308,0.000203,2]
[395317344,1764616246176,-500.0,0.000203,2]
[395317345,1764616246185,-1000.0,0.000203,2]
[395317346,1764616246195,-3000.0,0.000203,2]
[395317347,1764616246204,-500.0,0.000203,2]
[395317348,1764616246214,-1000.0,0.000203,2]
[395317349,1764616246223,-3000.0,0.000203,2]
[395317350,1764616246232,-1500.0,0.000203,2]
[395317351,1764616246244,-1000.0,0.000203,2]
[395317352,1764616246255,-514.84070869,0.000203,2]
[395317353,1764616246264,-500.0,0.000203,2]
[395317354,1764616246274,-1000.0,0.000203,2]
[395317355,1764616246284,-3000.0,0.000203,2]
[395317356,1764616246293,-1500.0,0.000203,2]
[395317357,1764616246302,-1000.0,0.000203,2]
[395317358,1764616246311,-1000.0,0.000203,2]
[395317359,1764616246321,-500.0,0.000203,2]
[395317360,1764616246331,-1500.0,0.000203,2]
[395317361,1764616246340,-3000.0,0.000203,2]
[395317362,1764616246350,-1000.0,0.000203,2]
[395317363,1764616246359,-500.0,0.000203,2]
[395317364,1764616246369,-1500.0,0.000203,2]
[395317365,1764616246378,-3000.0,0.000203,2]
[395317366,1764616246388,-1000.0,0.000203,2]
[395317367,1764616246398,-1000.0,0.000203,2]
[395317368,1764616246408,-500.0,0.000203,2]
[395317369,1764616246417,-1500.0,0.000203,2]
[395317370,1764616246427,-1000.0,0.000203,2]
[395317371,1764616246436,-1000.0,0.000203,2]
[395317372,1764616246446,-3000.0,0.000203,2]
[395317373,1764616246455,-500.0,0.000203,2]
[395317374,1764616246465,-1500.0,0.000203,2]
[395317375,1764616246474,-1000.0,0.000203,2]
[395317376,1764616246483,-1000.0,0.000203,2]
[395317377,1764616246492,-3000.0,0.000203,2]
[395317378,1764616246502,-500.0,0.000203,2]
[395317379,1764616246511,-1500.0,0.000203,2]
[395317380,1764616246521,-1000.0,0.000203,2]
[395317381,1764616246530,-3000.0,0.000203,2]
[395317382,1764616246540,-500.0,0.000203,2]
[395317383,1764616246549,-1500.0,0.000203,2]
[395317384,1764616246559,-1000.0,0.000203,2]
[395317385,1764616246568,-1000.0,0.000203,2]
[395317386,1764616246577,-3000.0,0.000203,2]
[395317387,1764616246587,-500.0,0.000203,2]
[395317388,1764616246596,-1500.0,0.000203,2]
[395317389,1764616246605,-1000.0,0.000203,2]
[395317390,1764616246615,-1000.0,0.000203,2]
[395317391,1764616246625,-3000.0,0.000203,2]
[395317392,1764616246967,-500.0,0.000203,2]
[395317393,1764616247000,-1000.0,0.000203,2]
[395317394,1764616247011,-1000.0,0.000203,2]
[395317395,1764616247021,-1500.0,0.000203,2]
[395317396,1764616247031,-10000.0,0.000203,2]
[395317397,1764616247041,-3000.0,0.000203,2]
[395317398,1764616247051,-500.0,0.000203,2]
[395317399,1764616247061,-1000.0,0.000203,2]
[395317400,1764616247070,-1000.0,0.000203,2]
[395317401,1764616247080,-871.7798745,0.000203,2]
[395317402,1764616247090,-10000.0,0.000203,2]
[395317403,1764616247100,-3000.0,0.000203,2]
[395317404,1764616247110,-500.0,0.000203,2]
[395317405,1764616247120,-1000.0,0.000203,2]
[395317406,1764616247129,-1000.0,0.000203,2]
[395317407,1764616247139,-10000.0,0.000203,2]
[395317408,1764616247149,-3000.0,0.000203,2]
[395317409,1764616247158,-500.0,0.000203,2]
[395317410,1764616247168,-151.0,0.000203,2]
[395317411,1764616247178,-1000.0,0.000203,2]
[395317412,1764616247188,-1000.0,0.000203,2]
[395317413,1764616247197,-3000.0,0.000203,2]
[395317414,1764616247207,-10000.0,0.000203,2]
[395317415,1764616247217,-1000.0,0.000203,2]
[395317416,1764616247226,-10000.0,0.000203,2]
[395317417,1764616247237,-1000.0,0.000203,2]
[395317418,1764616247248,-2500.0,0.000203,2]
[395317419,1764616247258,-10000.0,0.000203,2]
[395317420,1764616247268,-8000.0,0.000203,2]
[395317421,1764616247278,-620.0,0.000203,2]
[395317422,1764616247288,-2500.0,0.000203,2]
[395317423,1764616247297,-10000.0,0.000203,2]
[395317424,1764616247307,-8000.0,0.000203,2]
[395317425,1764616247317,-2500.0,0.000203,2]
[395317426,1764616247328,-10000.0,0.000203,2]
[395317427,1764616247337,-8000.0,0.000203,2]
[395317428,1764616247347,-2500.0,0.000203,2]
[395317429,1764616247356,-8000.0,0.000203,2]
[395317430,1764616247365,-9158.87015572,0.000203,2]
[395317431,1764616247380,-841.12984428,0.000203,2]
[395317432,1764616247389,-2500.0,0.000203,2]
[395317433,1764616247399,-3150.34624521,0.000203,2]
[395317434,1764616247411,-547.86314549,0.000203,2]
[395317435,1764616247426,-4301.7906093,0.000203,2]
[395317436,1764616247435,-10000.0,0.000203,2]
[395317437,1764616247445,-2500.0,0.000203,2]
[395317438,1764616247454,-8000.0,0.000203,2]
[395317439,1764616247463,-10000.0,0.000203,2]
[395317440,1764616247472,-2500.0,0.000203,2]
[395317441,1764616247482,-8000.0,0.000203,2]
[395317442,1764616247491,-10000.0,0.000203,2]
[395317443,1764616247500,-2500.0,0.000203,2]
[395317444,1764616247510,-8000.0,0.000203,2]
[395317445,1764616247519,-10000.0,0.000203,2]
[395317446,1764616247528,-2500.0,0.000203,2]
[395317447,1764616247537,-10000.0,0.000203,2]
[395317448,1764616247547,-2500.0,0.000203,2]
[395317449,1764616247556,-2500.0,0.000203,2]
[395317450,1764616247566,-151.0,0.000203,2]
[395317451,1764616247576,-500.0,0.000203,2]
[395317452,1764616247587,-2500.0,0.000203,2]
[395317453,1764616247597,-250.0,0.000203,2]
[395317454,1764616247607,-500.0,0.000203,2]
[395317455,1764616247617,-8000.0,0.000203,2]
[395317456,1764616247629,-2500.0,0.000203,2]
[395317457,1764616247639,-250.0,0.000203,2]
[395317458,1764616247648,-500.0,0.000203,2]
[395317459,1764616247657,-8000.0,0.000203,2]
[395317460,1764616247667,-2500.0,0.000203,2]
[395317461,1764616247676,-250.0,0.000203,2]
[395317462,1764616247687,-500.0,0.000203,2]
[395317463,1764616247696,-151.0,0.000203,2]
[395317464,1764616247706,-8000.0,0.000203,2]
[395317465,1764616247715,-250.0,0.000203,2]
[395317466,1764616247724,-500.0,0.000203,2]
[395317467,1764616247733,-8000.0,0.000203,2]
[395317468,1764616247742,-354.84418245,0.000203,2]
[395317469,1764616247752,-500.0,0.000203,2]
[395317470,1764616247761,-4148.05773878,0.000203,2]
[395317471,1764616247771,-500.0,0.000203,2]
[395317472,1764616247780,-500.0,0.000203,2]
[395317473,1764616247789,-500.0,0.000203,2]
[395317474,1764616247799,-500.0,0.000203,2]
[395317475,1764616247808,-500.0,0.000203,2]
[395317476,1764616247818,-1000.0,0.000203,2]
[395317477,1764616247827,-500.0,0.000203,2]
[395317478,1764616247837,-1000.0,0.000203,2]
[395317479,1764616247846,-500.0,0.000203,2]
[395317480,1764616247855,-1000.0,0.000203,2]
[395317481,1764616247867,-1000.0,0.000203,2]
[395317482,1764616247877,-500.0,0.000203,2]
[395317483,1764616247886,-1000.0,0.000203,2]
[395317484,1764616247895,-151.0,0.000203,2]
[395317485,1764616247904,-1000.0,0.000203,2]
[395317486,1764616247913,-1000.0,0.000203,2]
[395317487,1764616247922,-1328.07662834,0.000203,2]
[395317488,1764616247931,-151.0,0.000203,2]
[395317489,1764616247940,-42.46281279,0.000203,2]
[395317497,1764616741266,1050.0,0.00025,120]
[395317509,1764617171307,830.59,0.00022,30]
[395317557,1764617432060,-348.73073909,0.00013699,2]
[395317567,1764617432115,-262.48926091,0.00013699,2]
[395317569,1764617432128,-200.0,0.00013699,2]
[395317571,1764617432138,-500.0,0.00014427,2]
[395317573,1764617432147,-3704.46,0.00014627,2]
[395317575,1764617432156,-166.66,0.00014661,2]
[395317577,1764617432166,-150.0,0.0001476,2]
[395317579,1764617432175,-1000.0,0.0001482,2]
[395317581,1764617432184,-166.66,0.00014969,2]
[395317583,1764617432194,-160.0,0.00015,2]
[395317585,1764617432203,-500.0,0.00015048,2]
[395317587,1764617432213,-932.591133,0.00015054,2]
[395317589,1764617432222,-20594.56890935,0.00015055,2]
[395317591,1764617432232,-548.43319377,0.00015056,2]
[395317592,1764617432241,-161.4961814,0.00015056,2]
[395317593,1764617432250,-300.0,0.00015056,2]
[395317594,1764617432260,-17172.24036012,0.00015057,2]
[395317595,1764617432272,-630.31,0.00015057,2]
[395317596,1764617432288,-40899.93445544,0.00015057,2]
[395317597,1764617432299,-80154.80623363,0.00015057,2]
[395317598,1764617432311,-203367.93008119,0.00015057,2]
[395317599,1764617432323,-820.7253007,0.00015057,2]
[395317600,1764617432338,-535.52958408,0.00015057,2]
[395317603,1764617432350,-6140.63914911,0.00015057,2]
[395317613,1764617438062,-151.0,0.00015054,2]
[395317614,1764617438072,-745.94,0.00015057,2]
[395317615,1764617438117,-4100.14377556,0.00015057,2]
[395317616,1764617438173,-15129.25632115,0.00015057,2]
[395317617,1764617438230,-1111.65528519,0.00015057,2]
[395317618,1764617438242,-676.04789949,0.00015057,2]
[395317619,1764617438255,-288.73935104,0.00015057,2]
[395317621,1764617440181,-422.89223244,0.00015056,2]
[395317622,1764617440289,-77.10776756,0.00015056,2]
[395317623,1764617440298,-173.57667748,0.00015056,2]
[395317624,1764617440307,-480.58897997,0.00015056,2]
[395317625,1764617440318,-19.41102003,0.00015056,2]
[395317626,1764617440328,-500.0,0.00015056,2]
[395317627,1764617440337,-500.0,0.00015056,2]
[395317628,1764617440348,-500.0,0.00015056,2]
[395317629,1764617440356,-483.93761513,0.00015056,2]
[395317630,1764617440366,-500.0,0.00015056,2]
[395317631,1764617440376,-502.49742178,0.00015056,2]
[395317632,1764617440385,-500.0,0.00015056,2]
[395317633,1764617440395,-500.0,0.00015056,2]
[395317634,1764617440404,-500.0,0.00015056,2]
[395317635,1764617440413,-500.0,0.00015056,2]
[395317637,1764617440799,-388226.1022033,0.00015057,2]
[395317638,1764617440809,-1071.0,0.00015155,2]
[395317639,1764617440818,-3760.296,0.00015157,2]
[395317640,1764617440827,-280.8878,0.00015157,2]
[395317641,1764617440836,-2491.4269,0.00015157,2]
[395317642,1764617440846,-11280.4097,0.00015157,2]
[395317643,1764617440855,-2498.2296,0.00015157,2]
[395317644,1764617440864,-500.0,0.00015248,2]
[395317645,1764617440874,-151.0,0.00015248,2]
[395317646,1764617440883,-500.0,0.00015248,2]
[395317647,1764617440892,-200.0,0.00015248,2]
[395317648,1764617440901,-200.0,0.00015248,2]
[395317649,1764617440911,-151.0,0.00015248,2]
[395317650,1764617440920,-151.0,0.00015248,2]
[395317651,1764617440929,-151.0,0.00015248,2]
[395317652,1764617440939,-151.0,0.00015248,2]
[395317653,1764617440948,-151.0,0.00015248,2]
[395317654,1764617440958,-151.0,0.00015248,2]
[395317655,1764617440968,-151.0,0.00015248,2]
[395317656,1764617440977,-151.0,0.00015248,2]
[395317657,1764617440987,-151.0,0.00015248,2]
[395317658,1764617440996,-151.0,0.00015248,2]
[395317659,1764617441005,-151.0,0.00015248,2]
[395317660,1764617441014,-151.0,0.00015248,2]
[395317661,1764617441024,-277.33982032,0.00015248,2]
[395317662,1764617441033,-515.26,0.00015252,2]
[395317663,1764617441043,-500.0,0.00015256,2]
[395317664,1764617441052,-500.0,0.00015256,2]
[395317665,1764617441062,-500.0,0.00015256,2]
[395317666,1764617441071,-4783.12,0.00015256,2]
[395317667,1764617441081,-4783.12,0.00015256,2]
[395317668,1764617441091,-4783.12,0.00015256,2]
[395317669,1764617441100,-20594.56890934,0.0001526,2]
[395317670,1764617441109,-166.66,0.00015278,2]
[395317671,1764617441119,-1000.0,0.00015357,2]
[395317672,1764617441128,-500.0,0.00015456,2]
[395317673,1764617441138,-500.0,0.00015456,2]
[395317674,1764617441147,-500.0,0.00015456,2]
[395317675,1764617441156,-20594.56890934,0.00015465,2]
[395317676,1764617441165,-515.26,0.00015526,2]
[395317677,1764617441174,-200.0,0.00015534,2]
[395317678,1764617441183,-166.66,0.00015586,2]
[395317679,1764617441193,-20594.56890934,0.0001567,2]
[395317680,1764617441202,-150.0,0.00015689,2]
[395317681,1764617441211,-151.0,0.00015796,2]
[395317682,1764617441221,-515.26,0.000158,2]
[395317683,1764617441231,-20594.56890934,0.00015875,2]
[395317684,1764617441240,-166.66,0.00015895,2]
[395317685,1764617441249,-807.66180271,0.0001599,2]
[395317686,1764617441259,-151.0,0.00015997,2]
[395317687,1764617441268,-241751.88629714,0.00016,2]
[395317688,1764617441277,-495920.36141539,0.00016,4]
[395317689,1764617441286,-515.26,0.00016074,2]
[395317690,1764617441296,-20594.56890934,0.0001608,2]
[395317691,1764617441305,-360.0,0.00016185,2]
[395317692,1764617441314,-5000.00547792,0.000162,5]
[395317693,1764617441323,-166.66,0.00016204,2]
[395317694,1764617441332,-151.0,0.00016344,2]
[395317695,1764617441342,-515.26739623,0.00016348,2]
[395317696,1764617441350,-484.29049014,0.00016438,2]
[395317697,1764617441359,-357.76401239,0.000166,2]
[395317698,1764617441368,-1000.0,0.00016673,2]
[395317699,1764617441378,-2076.56231822,0.000169,2]
[395317700,1764617441387,-544.87415152,0.00016927,2]
[395317701,1764617441397,-500.0,0.00016973,2]
[395317702,1764617441406,-500.0,0.00016973,2]
[395317703,1764617441415,-500.0,0.00016973,2]
[395317704,1764617441425,-500.0,0.00016973,2]
[395317705,1764617441434,-201.14127779,0.00016973,2]
[395317706,1764617441443,-159.45765875,0.00016973,2]
[395317707,1764617441452,-500.0,0.00016973,2]
[395317708,1764617441462,-500.0,0.00016973,2]
[395317709,1764617441471,-500.0,0.00016973,2]
[395317710,1764617441480,-233.06885898,0.00016973,2]
[395317711,1764617441489,-500.0,0.00016973,2]
[395317712,1764617441498,-500.0,0.00016973,2]
[395317713,1764617441507,-500.0,0.00016973,2]
[395317714,1764617441516,-623.00541346,0.00016973,2]
[395317715,1764617441525,-500.0,0.00016973,2]
[395317716,1764617441535,-162.47379321,0.00016973,2]
[395317717,1764617441544,-500.0,0.00016973,2]
[395317718,1764617441554,-500.0,0.00016973,2]
[395317719,1764617441563,-500.0,0.00016973,2]
[395317720,1764617441572,-1716.0,0.00016986,2]
[395317721,1764617441581,-15940.0,0.00016986,2]
[395317722,1764617441591,-807.66180271,0.0001699,2]
[395317723,1764617441600,-807.66180271,0.0001699,2]
[395317724,1764617441614,-151.0,0.00016997,2]
[395317725,1764617441624,-467.59,0.00017,5]
[395317726,1764617441633,-250.0,0.00017,2]
[395317727,1764617441642,-68994.95485219,0.00017,2]
[395317728,1764617441653,-3242711.63657426,0.00017,2]
[395317729,1764617441672,-13234.25867916,0.00017,2]
[395317730,1764617441684,-4256.65,0.00017,2]
[395317731,1764617441694,-2711.03170042,0.00017,2]
[395317740,1764617446072,-2750.79860001,0.00016285,2]
[395317741,1764617446288,-1661.0,0.00016285,2]
[395317742,1764617446342,-1575.89116165,0.00016285,2]
[395317743,1764617446399,-12606.10942379,0.00016285,2]
[395317746,1764617540299,156.35,7.862e-05,2]
[395317747,1764617540510,156.35,8.517e-05,2]
[395317748,1764617540716,156.35,9.172e-05,2]
[395317749,1764617540944,156.35,9.827e-05,2]
[395317750,1764617541181,156.35,0.00010482,2]
[395317751,1764617541387,156.35,0.00011138,2]
[395317752,1764617541751,156.35,0.00011793,2]
[395317753,1764617653817,-307.00442457,0.0002,20]
[395317800,1764618632321,-156.35,0.00012448,2]
[395317801,1764618632331,-156.35,0.00013103,2]
[395317802,1764618632342,-156.35,0.00013758,2]
[395317803,1764618632353,-625.55,0.00014082,2]
[395317804,1764618632363,-156.35,0.00014413,2]
[395317805,1764618632379,-174.98,0.00014517,2]
[395317806,1764618632391,-978.0,0.00014818,2]
[395317807,1764618632401,-300.0,0.00014855,2]
[395317808,1764618632411,-1200.0,0.00014855,2]